Cogmind - Beta 14 @@@ ROGUE MODE // 2024.10.06 @ 23:23:57 Player: Warren Result: Destroyed by FF-72P(z) with Makeshift Shrapnel Gun Performance ------------- Evolutions (1) 500 Regions Visited (5) 1000 Robots Destroyed (84) 420 Value Destroyed (1391) 1391 Prototype IDs (0) 0 Alien Tech Used (0) 0 Bonus (-3) -3 TOTAL SCORE: 3308 Bonus ------- High Alert Combat Kills 33 Friendly Fire -36 Cogmind --------- Core Integrity 0/400 Matter 371/450 Energy 100/100 System Corruption 1% Temperature Cool (9) Movement Core (250) Ox4 Location -7/Zion Parts ------- > --- POWER (2) -------- (None) > --- PROPULSION (2) --- (None) > --- UTILITY (3) ------ Compact Matter Pod ECM Suite Makeshift Light Armor Plating > --- WEAPON (2) ------- Heavy Rocket Launcher > --- INVENTORY (5) ---- Improved Heat Sink Makeshift Salvage Targeting Computer Makeshift Salvage Targeting Computer Makeshift Light Armor Plating Makeshift Hacking Suite Peak State ------------ > --- POWER ------------ Ion Engine > --- PROPULSION ------- Makeshift Flight Unit > --- UTILITY ---------- Compact Matter Pod ECM Suite Makeshift Light Armor Plating > --- WEAPON ----------- Makeshift Laser Makeshift Sword > --- INVENTORY -------- Improved Heat Sink Makeshift Salvage Targeting Computer Makeshift Salvage Targeting Computer Makeshift Light Armor Plating [Rating: 22] Favorites ----------- Power Improved Ion Engine Engine Improved Ion Engine Propulsion Flight Unit Leg Aluminum Leg Wheel Wheel Hover Unit Hover Unit Flight Unit Flight Unit Utility ECM Suite Device ECM Suite Storage High-capacity Matter Pod Hackware Hacking Suite Protection Light Armor Plating Weapon Heavy Assault Rifle Energy Gun Small Laser Energy Cannon Beam Cannon Ballistic Gun Heavy Assault Rifle Launcher Grenade Launcher Slashing Weapon Makeshift Sword Special Melee Weapon Datajack Build | -11 -10 -10 -9 -9 -7 ------- Run | Yrd Mat Min Mat Min Zio Slots Evolved 2 | . . . 2 . . Power 1 | . . . 1 . . Propulsion . | . . . . . . Utility 1 | . . . 1 . . Weapon . | . . . . . . Parts Attached 83 | 9 18 2 31 18 5 Power 14 | 2 1 1 7 3 . Engine 14 | 2 1 1 7 3 . Core . | . . . . . . Reactor . | . . . . . . Propulsion 24 | 3 5 . 9 6 1 Treads . | . . . . . . Leg 3 | 1 . . . 2 . Wheel 2 | 2 . . . . . Hover 2 | . 1 . 1 . . Flight 17 | . 4 . 8 4 1 Utility 19 | 2 5 . 8 3 1 Device 8 | 1 2 . 4 1 . Storage 5 | 1 1 . 1 2 . Processor . | . . . . . . Hackware 2 | . 2 . . . . Protection 4 | . . . 3 . 1 Artifact . | . . . . . . Weapon 26 | 2 7 1 7 6 3 Energy Gun 7 | 2 1 . 1 2 1 Energy Cannon 1 | . 1 . . . . Ballistic Gun 12 | . 2 1 6 3 . Ballistic Cannon . | . . . . . . Launcher 4 | . 3 . . . 1 Special Weapon . | . . . . . . Impact Weapon . | . . . . . . Slashing Weapon 1 | . . . . . 1 Piercing Weapon . | . . . . . . Special Melee Weapon 1 | . . . . 1 . Unidentified Prototypes . | . . . . . . Parts Lost 22 | . 2 . 11 6 3 Power 5 | . . . 3 1 1 Propulsion 9 | . 1 . 3 4 1 Utility 5 | . 1 . 4 . . Weapon 3 | . . . 1 1 1 Highest Loss Streak 3 | . 2 . 2 3 3 To Critical Strikes . | . . . . . . Average Slot Usage (%) 82 | . 82 87 84 81 79 Engine 17 | . 10 12 19 18 12 Leg 4 | . . . . 15 3 Flight 12 | . 16 28 16 2 9 Device 12 | . 10 14 14 10 11 Storage 9 | . 4 . 7 13 12 Hackware 1 | . 6 14 . . . Protection 3 | . . . 4 . 9 Energy Gun 6 | . 3 . . 18 10 Ballistic Gun 10 | . 3 17 19 1 . Launcher 1 | . 9 . . . 3 Slashing Weapon 1 | . . . . . 8 Peak Build Rating 22 | 7 11 10 15 13 22 Average Rating 11 | 5 6 8 11 9 20 On Entrance 7 | . 7 7 10 5 13 Naked Turns . | . . . . . . Heaviest Build 29 | 10 19 7 29 21 21 Greatest Support 20 | 20 20 8 8 20 20 Greatest Overweight (x) 6 | . 4 . 6 6 2 Average Overweight (x) 1 | . . . 1 . 1 Largest Inventory Capacity 10 | 5 10 5 5 5 5 Average Capacity 5 | 5 5 5 5 5 5 Most Carried 5 | 5 5 5 5 5 5 Average Carried 3 | 3 2 4 4 3 4 Final Capacity 5 | 5 5 5 5 5 5 Final Carried 5 | 5 4 5 4 3 5 Class Distribution -------------------- 61% | Scavenger-Mutant 29% | Mutant 8% | Derelict-Mutant Dominant Class ---------------- Mutant | -10/Materials Scavenger-Mutant | -10/Mines Scavenger-Mutant | -9/Materials Scavenger-Mutant | -9/Mines Derelict-Mutant | -7/Zion Resources | -11 -10 -10 -9 -9 -7 ----------- Run | Yrd Mat Min Mat Min Zio Matter Collected 2165 | 330 73 64 1433 225 40 Remotely 410 | . . . 410 . . Salvage Created 2102 | 154 223 20 1433 262 10 Parts 183 | 15 31 2 110 20 5 Haulers Intercepted 3 | . 2 . 1 . . Recyclers Shooed 3 | . 1 1 1 . . Parts Field Recycled . | . . . . . . Retrieved Matter . | . . . . . . Parts Self-Destructed . | . . . . . . Prevented . | . . . . . . Kills | -11 -10 -10 -9 -9 -7 ------- Run | Yrd Mat Min Mat Min Zio Combat Hostiles Destroyed 48 | 1 10 . 28 9 . Guns 38 | 1 . . 28 9 . AOE 10 | . 10 . . . . Classes Destroyed 11 | 3 5 . 2 . 1 Worker 10 | 1 . . 8 1 . Builder 3 | . 3 . . . . Tunneler 7 | 4 . 1 1 1 . Hauler 3 | . 2 . 1 . . Recycler 3 | . . . 3 . . Operator 4 | . 3 . 1 . . Watcher 4 | . 2 . 2 . . Swarmer 24 | . 6 . 12 6 . Grunt 18 | 1 4 . 10 3 . Sentry 6 | . . . 6 . . Zionite 2 | . . . . . 2 Best Kill Streak 10 | 4 10 1 6 3 2 Combat Bots Only 6 | 1 6 . 5 3 . Max Kills in Single Turn 3 | 1 3 1 2 1 2 Gunslinging . | . . . . . . Exploded 2 | . 2 . . . . Melee . | . . . . . . Uniques/NPCs Destroyed . | . . . . . . Combat | -11 -10 -10 -9 -9 -7 -------- Run | Yrd Mat Min Mat Min Zio Hostile Shots Fired 306 | 2 41 . 192 51 20 Missed 68 | 1 6 . 46 7 8 Damage Taken 2596 | 10 345 . 1504 463 274 Core 501 | . 96 . 240 148 17 Absorbed by Shields . | . . . . . . Regen/Repaired (Parts) 45 | . . . 45 . . Core Remaining (%) 80 | 100 . 61 . . . Volleys Fired 237 | 20 30 25 112 44 6 Largest 2 | 2 2 2 2 2 1 Hottest 105 | 90 90 40 46 105 39 Shots Fired 391 | 40 46 31 215 53 6 Gun 348 | 40 9 31 215 53 . Cannon 13 | . 13 . . . . Launcher 30 | . 24 . . . 6 Special . | . . . . . . Kinetic 280 | . 3 31 215 31 . Thermal 81 | 40 19 . . 22 . Explosive 30 | . 24 . . . 6 Electromagnetic . | . . . . . . Robot Hit Streak 9 | 7 7 4 8 9 . Robot Miss Streak 7 | 3 7 3 4 4 1 Penetration Max . | . . . . . . Secondary Targets 6 | . . . 6 . . Max Gunslinging Chain 1 | . . . 1 . . Shots Hit Robots 213 | 20 25 18 117 32 1 Core Hits 131 | 7 43 3 60 16 2 Critical Kills 1 | . . . 1 . . Critical Parts Destroyed . | . . . . . . Critical Strikes 3 | 1 . . 1 . 1 Burn 1 | 1 . . . . . Destroy 1 | . . . 1 . . Sever 1 | . . . . . 1 Melee Attacks 1 | . . . . . 1 Impact . | . . . . . . Slashing 1 | . . . . . 1 Piercing . | . . . . . . Sneak Attacks . | . . . . . . Combat Hostiles . | . . . . . . Follow-up Attacks . | . . . . . . Damage Inflicted 4135 | 221 1362 163 1824 330 235 Guns 2588 | 221 50 163 1824 330 . Cannons 123 | . 123 . . . . Explosions 1389 | . 1189 . . . 200 Melee 35 | . . . . . 35 Ramming . | . . . . . . Kinetic 2188 | . 16 163 1824 185 . Thermal 523 | 221 157 . . 145 . Explosive 1389 | . 1189 . . . 200 Electromagnetic . | . . . . . . Impact . | . . . . . . Slashing 35 | . . . . . 35 Piercing . | . . . . . . Highest Corruption 1 | . . . . . 1 Average Corruption 1 | . . . . . 1 Corruption Purged . | . . . . . . Corruption Blocked . | . . . . . . Overload Shots . | . . . . . . Overflow Damage 61 | . 39 . . . 22 Projectiles . | . . . . . . Explosions 61 | . 39 . . . 22 Melee . | . . . . . . Knockbacks . | . . . . . . Impact . | . . . . . . Kinetic . | . . . . . . Secondary . | . . . . . . Self-Inflicted Damage 67 | . 39 . . . 28 Shots 3 | . 2 . . . 1 Rammed . | . . . . . . Targets Rammed . | . . . . . . Kicked . | . . . . . . Crushed . | . . . . . . Highest Temperature 378 | 170 278 8 183 378 6 Average Temperature 61 | 59 84 2 49 125 4 Received Heat Transfer 774 | 6 66 . 522 171 9 Effects 2 | . 1 . . 1 . Energy Bleed 1 | . 1 . . . . Damage (minor) 1 | . . . . 1 . Siege Activations . | . . . . . . Robots Corrupted . | . . . . . . Combat Hostiles . | . . . . . . Parts Fried . | . . . . . . Impact Corruptions . | . . . . . . Robots Melted . | . . . . . . Combat Hostiles . | . . . . . . Parts Melted 1 | . . . . 1 . Heat Transferred 1363 | 657 358 . . 348 . Parts Sabotaged . | . . . . . . Parts Stolen . | . . . . . . Parts Stripped . | . . . . . . Power Chain Reactions . | . . . . . . Alert | -11 -10 -10 -9 -9 -7 ------- Run | Yrd Mat Min Mat Min Zio Peak Influence 506 | 46 481 134 506 319 . Initial 164 | . 29 129 52 164 . Average 229 | 19 305 130 272 180 . Maximum Alert Level 2 | . 2 . 2 1 . Low Security (%) 47 | 100 15 100 41 53 . Level 1 44 | . 56 . 49 46 . Level 2 7 | . 27 . 8 . . Level 3 . | . . . . . . Level 4 . | . . . . . . Level 5 . | . . . . . . High Security . | . . . . . . Max Security . | . . . . . . Squads Dispatched 7 | . 2 . 5 . . Investigation 2 | . 1 . 1 . . Extermination . | . . . . . . Reinforcement 5 | . 1 . 4 . . Assault . | . . . . . . Garrison . | . . . . . . Intercept . | . . . . . . Searches Triggered . | . . . . . . Construction Impeded 1 | . . . 1 . . Haulers Reinforced . | . . . . . . Active Scanning Responses . | . . . . . . Cargo Convoy Interrupts . | . . . . . . Stealth | -11 -10 -10 -9 -9 -7 --------- Run | Yrd Mat Min Mat Min Zio Distress Signals 6 | . 3 . 2 1 . Communications Jammed . | . . . . . . Distress Signals . | . . . . . . Times Spotted 77 | 1 17 . 43 9 7 Peak Tracking Total 9 | 1 3 . 9 3 4 Tactical Retreats 6 | . . . 5 1 . Traps | -11 -10 -10 -9 -9 -7 ------- Run | Yrd Mat Min Mat Min Zio Traps Triggered . | . . . . . . Indirectly . | . . . . . . Trap Hack Attempts . | . . . . . . Triggered . | . . . . . . Disarmed . | . . . . . . Reprogrammed . | . . . . . . Reused . | . . . . . . Traps Extracted . | . . . . . . Installed . | . . . . . . Triggered . | . . . . . . Machines | -11 -10 -10 -9 -9 -7 ---------- Run | Yrd Mat Min Mat Min Zio Machines Disabled 2 | . 1 . . . 1 Max in Single Turn 1 | . 1 . . . 1 Machines Repaired . | . . . . . . Machines Dismantled . | . . . . . . Machines Sabotaged . | . . . . . . Overloaded Fab Kills . | . . . . . . Hacking | -11 -10 -10 -9 -9 -7 --------- Run | Yrd Mat Min Mat Min Zio Machines Accessed 8 | . 3 . 5 . . Terminals 4 | . 2 . 2 . . Fabricators . | . . . . . . Repair Stations 1 | . . . 1 . . Recycling Units 2 | . 1 . 1 . . Scanalyzers 1 | . . . 1 . . Garrison Access . | . . . . . . Total Hacks 23 | . 9 . 14 . . Successful 20 | . 9 . 11 . . Failed 3 | . . . 3 . . Catastrophic 1 | . . . 1 . . Database Lockouts . | . . . . . . Manual 2 | . . . . . 2 Terminals 8 | . 6 . 2 . . Fabricators . | . . . . . . Repair Stations 3 | . . . 3 . . Recycling Units 7 | . 3 . 4 . . Scanalyzers 5 | . . . 5 . . Garrison Access . | . . . . . . Terminal Hacks 7 | . 6 . 1 . . Record 2 | . 2 . . . . Alert Level 2 | . 1 . 1 . . Unreport Threat 1 | . 1 . . . . Recall Reinforcements 1 | . 1 . . . . Zone Layout 1 | . 1 . . . . Fabricator Hacks . | . . . . . . Repair Station Hacks 2 | . . . 2 . . Scan Component 1 | . . . 1 . . Repair 1 | . . . 1 . . Recycling Unit Hacks 7 | . 3 . 4 . . Recycle Component 7 | . 3 . 4 . . Scanalyzer 4 | . . . 4 . . Insert Component 2 | . . . 2 . . Analyze 2 | . . . 2 . . Garrison Access Hacks . | . . . . . . Unauthorized Hacks . | . . . . . . Terminals . | . . . . . . Fabricators . | . . . . . . Repair Stations . | . . . . . . Recycling Units . | . . . . . . Scanalyzers . | . . . . . . Garrison Access . | . . . . . . Data Cores Recovered 1 | . 1 . . . . Used . | . . . . . . Hacking Detections 4 | . 2 . 2 . . Full Trace Events 2 | . 1 . 1 . . Feedback Events . | . . . . . . Feedback Blocked . | . . . . . . Robot Schematics Acquired . | . . . . . . Robots Built . | . . . . . . Authchips . | . . . . . . Time . | . . . . . . Total Robot Build Rating . | . . . . . . Part Schematics Acquired 2 | . . . 2 . . Parts Built . | . . . . . . Authchips . | . . . . . . Time . | . . . . . . Total Part Build Rating . | . . . . . . Parts Repaired 1 | . . . 1 . . Time 26 | . . . 26 . . Parts Recycled 7 | . 3 . 4 . . Recycled Matter . | . . . . . . Retrieved Matter . | . . . . . . Retrieved Components . | . . . . . . Parts Scanalyzed 2 | . . . 2 . . Part Schematics Acquired 2 | . . . 2 . . Parts Damaged . | . . . . . . Bothacking | -11 -10 -10 -9 -9 -7 ------------ Run | Yrd Mat Min Mat Min Zio Used RIF Installer . | . . . . . . Robots Hacked . | . . . . . . Non-combat . | . . . . . . Combat . | . . . . . . Robot Hacks Applied . | . . . . . . Relay Couplers Released . | . . . . . . Fabnet Peak Effective % . | . . . . . . Robots Rewired . | . . . . . . Allies Hacked . | . . . . . . Hacks Repelled . | . . . . . . Allies | -11 -10 -10 -9 -9 -7 -------- Run | Yrd Mat Min Mat Min Zio Total Allies 2 | . . . . 2 . Largest Group 2 | . . . . 2 2 Highest-Rated Group 53 | . . . . 53 53 Highest-Rated Ally 31 | . . . . 31 31 Total Orders . | . . . . . . Ally Attacks . | . . . . . . Total Damage . | . . . . . . Kills . | . . . . . . Allies Corrupted . | . . . . . . Allies Melted . | . . . . . . Intel | -11 -10 -10 -9 -9 -7 ------- Run | Yrd Mat Min Mat Min Zio Robot Analysis Total . | . . . . . . Derelict Logs Recovered 2 | . . . . 1 1 Drone Launches . | . . . . . . Drone Recoveries . | . . . . . . Exploration | -11 -10 -10 -9 -9 -7 ------------- Run | Yrd Mat Min Mat Min Zio Turns Passed 3650 | 223 368 87 1601 826 545 Spaces Moved 1993 | 181 289 84 686 445 308 Core 44 | 19 . . . 25 . Treads . | . . . . . . Legs 384 | . . . . 341 43 Wheels 206 | 162 44 . . . . Hover 36 | . . . 36 . . Flight 1323 | . 245 84 650 79 265 Fastest Speed 37 | 50 37 37 37 37 120 Average Speed 139 | 76 82 37 173 150 166 Slowest Speed 520 | 80 365 37 520 350 235 Overloaded Moves . | . . . . . . Propulsion Burnouts . | . . . . . . Robots Hopped . | . . . . . . Cave-ins Triggered . | . . . . . . Exploration Rate (%) 39 | 5 53 17 59 57 44 Regions Visited 5 Branch Regions 3 Pre-discovered Areas . | . . . . . . Known Exits Taken . | . . . . . . Unknown Exits Taken 5 | 1 1 1 1 1 . Scrap Searched 2 | . . 1 . 1 . Spaces Dug . | . . . . . . Terrain Destroyed 150 | . 113 . . . 37 Melee . | . . . . . . Projectile . | . . . . . . AOE 150 | . 113 . . . 37 Terrain Rammed . | . . . . . . Walls Destroyed . | . . . . . . Machines Disabled . | . . . . . . Actions | -11 -10 -10 -9 -9 -7 --------- Run | Yrd Mat Min Mat Min Zio Total 2513 | 228 378 113 904 555 335 Wait 63 | . 3 . 32 28 . Move 1988 | 180 288 83 685 444 308 Hop . | . . . . . . Pick Up 76 | 14 19 3 21 13 6 Fast Attach 19 | 1 3 . 8 4 3 Attach 41 | 7 8 2 10 13 1 Detach 5 | 1 . . 3 1 . Swap 23 | 1 7 . 13 1 1 Drop 60 | 4 20 . 20 7 9 Fire 237 | 20 30 25 112 44 6 Melee 1 | . . . . . 1 Ram . | . . . . . . Kick . | . . . . . . Crush . | . . . . . . Escape Stasis . | . . . . . . Rewire . | . . . . . . Trap . | . . . . . . Miscellaneous . | . . . . . . Route ------- -11/Scrapyard -10/Materials (discovered 2 exits: Mat / [*Min]) -10/Mines -9/Materials (discovered 5 exits: [*Mat] / [*Min x2] / [*Sto x2]) -9/Mines -7/Zion History --------- Turn | Location | Event 2 | -11/Scrapyard | Met Revision 17 103 | -11/Scrapyard | Discovered new exit (range 8) 224 | -11/Scrapyard | Entered Materials 408 | -10/Materials | Discovered new exit (range 8) 553 | -10/Materials | Discovered new exit (range 9) 592 | -10/Materials | Entered Mines 622 | -10/Mines | Discovered new exit (range 11) 679 | -10/Mines | Entered Materials 679 | -9/Materials | Evolved 2 slots: Power x1, Utility x1 726 | -9/Materials | Repaired Lgt. Armor Plating 1105 | -9/Materials | Build established: Scavenger-Mutant 1119 | -9/Materials | Discovered new exit (range 15) 1163 | -9/Materials | Discovered new exit (range 10) 1492 | -9/Materials | Discovered new exit (range 3) 1498 | -9/Materials | Discovered new exit (range 16) 1560 | -9/Materials | Discovered new exit (range 13) 2037 | -9/Materials | Core integrity fell below 50% 2280 | -9/Materials | Entered Mines 2351 | -9/Mines | Core integrity fell below 20% 2454 | -9/Mines | Lost 3 parts (1p1n1w) 2737 | -9/Mines | Learned location of 1 exit from Materials 3098 | -9/Mines | A Derelict revealed a hidden shortcut to a safe place 3106 | -9/Mines | Entered Zion 3106 | -7/Zion | Accompanied by 2 allies 3156 | -7/Zion | Led the pair of lost Derelicts to a safe place 3430 | -7/Zion | Learned Factory terminal intel 3501 | -7/Zion | Build established: Derelict-Mutant 3534 | -7/Zion | Warned about damaging Zion machinery 3632 | -7/Zion | Attacked by Zionites 3632 | -7/Zion | Caused signficant damage to Zion machinery 3632 | -7/Zion | Attacked by Zionites 3651 | -7/Zion | Destroyed by FF-72P(z) with Makeshift Shrapnel Gun Last Messages --------------- Machinery. 6J-6KP(z) Mak. Leg severed. Knocked back. Ion Engine destroyed. System corrupted by crushing effect (+1). Critical hit (Smash). 4Y-83N(z) bursts out of the Twisted Machinery. 6J-6KP(z) destroyed. FF-72P(z) bursts out of the Twisted Machinery. Mak. Sword destroyed. Destroyed Mak. Sword. YB-Q9B(z) destroyed. 4Y-83N(z) destroyed. 3V-OSU(z) bursts out of the Twisted Machinery. Mak. Flight Unit destroyed. 3V-OSU(z) pulls a Mak. Laser out of the Twisted Machinery. FF-72P(z) pulls a Mak. Shrapnel Gun out of the Twisted Machinery. [Achievement: First Step to Greatness] Map ----- +----------------------------------------------------+ | ?????????????????????????????????????????????????? | | ?????????????????????????????????????????????????? | | ?????????????????????????????????????????????????? | | ?????????????????????????????????????????????????? | | ?????????????????????????????????????????????????? | | ?????????????????????????????????????????????????? | | ?????????????????????????????????????????????????? | | ?????????????????????????????????????????????????? | | ?????????????????????????????????????????????????? | | ?????????????????????????????????????????????????? | | ?????????????????????????????????????????????????? | | ?????????????????????????????????????????????????? | | ?????????????????????????????????????????????????? | | ?????????????????????????????????????????????????? | | ?????????????????????????????????????????????????? | | ?????????????????????????????????????????????????? | | ?????????????????????????????????????????????????? | | ?????????????????????????????????????????????????? | | ?????????????????????????????????????????????????? | | ???????????######????????????????????????????????? | | ???????????#""""?????????????????????????????????? | | ???????????#"""######?????##?????????????????????? | | ???????????" ""## "###### ##?"??????????????????? | | ???????????# """ "#"#""????????????????? | | ??????????## """" / """""""" "???????????? | | ??????????" M!%=%@ z ""??????????? | | ??????????" * %% ""??????????? | | ??????????# = """""""" """"" ?????"" | | ?????????#" " ###"""""" """"""""??""" | | ?????????#"""" ###""#""" """""""""?#"" | | ?????????###""## # #""""#""" """ """###"" | | ???????????#######" z"""""""" "" """""" | | ??????????###### "" "" """ | | ??????????#]]## "" """ "" | | ?????????## " """"" "" | | ?????????#] " """""" """" | | ?????????##[ " d " | | ??????????# ]# " | | ??????????##### | | ??????????????#### "" """ | | ?????????????????## # """ """ """ | | ??????????????????### """"" "" """ | | ????????????????????## ""##" """ | | ?????????????????????# "#"" """""""""" | | ????????????????????#"" ##"" """#""#"##" | | ????????????????????###" """"" " "#""###### | | ??????????????????????#"""""""#""" " """##????? | | ??????????????????????#""" """#" "" ""??????? | | ???????????????????????"" ?""" "" "???????? | | ?????????????????????????? ??? " ""??????? | +----------------------------------------------------+ Best States ------------- Heat Dissipation 38 Energy Generation 19 Energy Capacity 430 Matter Stores 550 Matter Capacity 550 Sight Range 16 Terrain Scan Range 16 Terrain Scan Density 10 ECM Strength 1 Armor Coverage 150 Evasion (%) 62 Offensive Hacking 20 Authchip Count 1 Item Schematics ----------------- Autogun | -9/Materials | Scanalyzed ECM Suite | -9/Materials | Scanalyzed Robot Schematics ------------------ None Fabricated ------------ Nothing Alien Tech Used ----------------- None Achievements -------------- Everything Is Under Control First Step to Greatness Loot Pinata One Hack Too Far Oops Part-time Mechanic Robot Respite Storm Trooper Tourist Uninvited Guest Use The Force Challenges ------------ None Game ------ Seed EnhancedHugeSheargun Manual? 0 Play Time 01:14:30 Cumulative 1.2 hours Start 2024.10.06 @ 22:08:50 End 2024.10.06 @ 23:23:57 Sessions 1 Manual Loads 0 Difficulty Rogue Special Mode None Game No. 2 Rogue 2 Adventurer 0 Explorer 0 Win Type - Total 0 Types 0/0/0/0/0/0/0/0/0 Lore% 0 Gallery% 3 Achievement% 4 Wizard Run 0 Options --------- Layout 1 ASCII 0 Keyboard 0 Movement Mouse Keybinds 0 Fullscreen 2 Font 48/Smallcaps Map View 50x35 Zoom Use 0% Tactical HUD 0 Map Filters NONE Filters NONE Steam 1 RUN: ce0966ac-22b5-445d-9360-d8108942822f